bitfinex/quotes_BTCUSD_20241130
["timestamp","ask_amount","ask_price","bid_price","bid_amount"]
[1732961200582,0.16925999,96832.0,96831.0,0.0008643]
[1732961200826,0.014729,96832.0,96831.0,0.1524363]
[1732961201031,0.014729,96832.0,96831.0,0.15426393]
[1732961201465,0.004729,96832.0,96831.0,0.15426393]
[1732961201670,0.001729,96832.0,96831.0,0.15426393]
[1732961201894,0.008729,96832.0,96831.0,0.15426393]
[1732961202321,0.005729,96832.0,96831.0,0.15426393]
[1732961202537,0.005729,96832.0,96831.0,0.15526393]
[1732961215560,0.00315232,96832.0,96831.0,0.15526393]
[1732961217887,0.00315232,96832.0,96831.0,0.15526393]
[1732961220931,0.00315232,96832.0,96831.0,0.24476386]
[1732961221157,0.00315232,96832.0,96831.0,0.2429363]
[1732961221613,9.86e-05,96833.0,96832.0,0.113271]
[1732961221842,9.86e-05,96833.0,96832.0,0.15279859]
[1732961222064,9.86e-05,96833.0,96832.0,0.16279859]
[1732961222560,9.86e-05,96833.0,96832.0,0.3451438]
[1732961222799,9.86e-05,96833.0,96832.0,0.34331621]
[1732961223037,9.86e-05,96833.0,96832.0,0.49431621]
[1732961224009,9.86e-05,96833.0,96832.0,0.49731621]
[1732961224254,9.86e-05,96833.0,96832.0,0.50431621]
[1732961224738,0.0020986,96833.0,96832.0,0.50431621]
[1732961225428,0.0020986,96833.0,96832.0,0.50331621]
[1732961225674,0.0030986,96833.0,96832.0,0.50331621]
[1732961228756,0.0017288,96839.0,96838.0,0.02]
[1732961229014,0.0017288,96848.0,96847.0,0.273255]
[1732961229253,0.0017288,96848.0,96847.0,0.50330021]
[1732961230421,0.0017288,96848.0,96847.0,0.50930021]
[1732961232067,0.0017288,96848.0,96847.0,0.51230021]
[1732961233897,0.0017288,96848.0,96847.0,0.52351402]
[1732961238322,0.2517288,96855.0,96854.0,0.388248]
[1732961238551,0.2517288,96855.0,96854.0,0.49109321]
[1732961240637,0.2517288,96855.0,96854.0,0.49309321]
[1732961240870,0.2517288,96855.0,96854.0,0.49109321]
[1732961241616,0.2517288,96855.0,96854.0,0.40139321]
[1732961241812,0.2517288,96855.0,96854.0,0.36609321]
[1732961242261,0.2537288,96855.0,96854.0,0.36609321]
[1732961244950,0.2537288,96855.0,96854.0,0.41139321]
[1732961245163,0.2537288,96855.0,96854.0,0.49109321]
[1732961247361,0.2537288,96855.0,96854.0,0.48109321]
[1732961247795,0.2537288,96855.0,96854.0,0.49109321]
[1732961247995,0.2537288,96855.0,96854.0,0.48109321]
[1732961248912,0.2537288,96855.0,96854.0,0.50109321]
[1732961250006,0.2517288,96855.0,96854.0,0.50109321]
[1732961250474,0.2517288,96855.0,96854.0,0.50509321]
[1732961251432,0.2517288,96855.0,96854.0,0.54640621]
[1732961251899,0.2517288,96855.0,96854.0,0.54540621]
[1732961252144,0.2517288,96855.0,96854.0,0.54740621]
[1732961270765,0.08762457,96855.0,96854.0,0.57040621]
[1732961271000,0.06697557,96855.0,96854.0,0.57040621]
[1732961272579,0.06697557,96855.0,96854.0,1.07143842]
[1732961273466,0.06783977,96855.0,96854.0,0.57040621]
[1732961275942,0.06783977,96855.0,96854.0,0.54740621]
[1732961277450,0.06783977,96855.0,96854.0,0.57040621]
[1732961278127,0.06783977,96855.0,96854.0,0.49070621]
[1732961281299,0.06783977,96855.0,96854.0,0.5019237]
[1732961281535,0.06783977,96855.0,96854.0,0.4789237]
[1732961281752,0.06783977,96855.0,96854.0,0.4336237]
[1732961284931,0.06783977,96855.0,96854.0,0.3931749]
[1732961287071,0.06783977,96855.0,96854.0,0.4393749]
[1732961295008,0.06783977,96855.0,96854.0,0.3931749]
[1732961295914,0.06783977,96855.0,96854.0,0.3911749]
[1732961296566,0.06783977,96855.0,96854.0,0.3781749]
[1732961296803,0.06783977,96855.0,96854.0,0.3901749]
[1732961297008,0.06783977,96855.0,96854.0,0.3911749]
[1732961298086,0.06783977,96855.0,96854.0,0.3891749]
[1732961298923,0.06783977,96855.0,96854.0,0.3881749]
[1732961299983,0.06783977,96855.0,96854.0,0.3891749]
[1732961300201,0.06783977,96855.0,96854.0,0.3901749]
[1732961300424,0.06783977,96855.0,96854.0,0.3891749]
[1732961300855,0.06783977,96855.0,96854.0,0.3911749]
[1732961302151,0.06783977,96855.0,96854.0,0.3811749]
[1732961302364,0.11653977,96855.0,96854.0,0.3811749]
[1732961303006,0.11653977,96855.0,96854.0,0.3801749]
[1732961303227,0.11653977,96855.0,96854.0,0.3781749]
[1732961303444,0.19283977,96855.0,96854.0,0.3781749]
[1732961304318,0.19283977,96855.0,96854.0,0.3681749]
[1732961305945,0.19283977,96855.0,96854.0,0.2181749]
[1732961306779,0.19283977,96855.0,96854.0,0.1149269]
[1732961307191,0.19283977,96855.0,96854.0,0.25370941]
[1732961307606,0.19483977,96855.0,96854.0,0.25370941]
[1732961307809,0.19483977,96855.0,96854.0,0.35695741]
[1732961309470,0.19483977,96855.0,96854.0,0.25370941]
[1732961310321,0.19483977,96855.0,96854.0,0.35695741]
[1732961310536,0.19483977,96855.0,96854.0,0.10370941]
[1732961312570,0.19483977,96855.0,96854.0,0.20695741]
[1732961315091,0.19456162,96855.0,96854.0,0.35695741]
[1732961315338,0.19428331,96855.0,96854.0,0.35695741]
[1732961317572,0.19428331,96855.0,96854.0,0.25370941]
[1732961317817,0.19428331,96855.0,96854.0,0.35695741]
[1732961319554,0.14558331,96855.0,96854.0,0.35695741]
[1732961320911,0.06928331,96855.0,96854.0,0.35695741]
[1732961327219,0.06928331,96855.0,96854.0,0.36784751]
[1732961330674,0.06928331,96855.0,96854.0,0.35695741]
[1732961331347,0.11528331,96855.0,96854.0,0.35695741]
[1732961332216,0.19838331,96855.0,96854.0,0.35695741]
[1732961332440,0.19838331,96855.0,96854.0,0.0008642]
[1732961332677,0.19838331,96855.0,96854.0,0.1508642]
[1732961332898,0.19838331,96855.0,96854.0,0.0008642]
[1732961335678,0.19663493,96855.0,96854.0,0.0008642]
[1732961344084,0.19663493,96855.0,96854.0,0.1041122]
[1732961344333,0.19663493,96855.0,96854.0,0.0008642]
[1732961345439,0.19663493,96855.0,96854.0,0.1041122]
[1732961345721,0.19663493,96855.0,96854.0,0.0008642]
[1732961345948,0.04063493,96855.0,96854.0,0.0008642]
[1732961348186,0.04063493,96855.0,96854.0,0.1041122]
[1732961348407,0.04063493,96855.0,96854.0,0.0008642]
[1732961348875,0.04063493,96855.0,96854.0,0.1041122]
[1732961349108,0.04063493,96855.0,96854.0,0.0008642]
[1732961353354,0.04149923,96855.0,96854.0,0.0008642]
[1732961356370,0.0008643,96855.0,96854.0,0.0008642]
[1732961361457,0.0008643,96855.0,96854.0,0.1041122]
[1732961363536,0.0008643,96855.0,96854.0,0.08846682]
[1732961366292,0.0008643,96855.0,96854.0,0.09019542]
[1732961370814,0.0008643,96855.0,96854.0,0.19304063]
[1732961371074,0.0008643,96855.0,96854.0,0.23824063]
[1732961375072,0.00080091,96855.0,96854.0,0.23824063]
[1732961390842,0.00080091,96855.0,96854.0,0.19304063]
[1732961391055,0.00080091,96855.0,96854.0,0.19486787]
[1732961392669,0.00080091,96855.0,96854.0,0.19304063]
[1732961392886,0.00080091,96855.0,96854.0,0.19486788]
[1732961403949,0.00080091,96855.0,96854.0,0.19304063]
[1732961404599,0.00080091,96855.0,96854.0,0.19486789]
[1732961405490,0.00080091,96855.0,96854.0,0.19304063]
[1732961407143,0.00080091,96855.0,96854.0,0.19486789]
[1732961407685,0.00080091,96855.0,96854.0,0.19304063]
[1732961410442,0.00080091,96855.0,96854.0,0.1948679]
[1732961412391,0.00080091,96855.0,96854.0,0.19304063]
[1732961412606,0.00080091,96855.0,96854.0,0.19486789]
[1732961413712,0.00080091,96855.0,96854.0,0.19304063]
[1732961414631,0.00080091,96855.0,96854.0,0.20782181]
[1732961415503,0.00080091,96855.0,96854.0,0.10457381]
[1732961416597,0.00080091,96855.0,96854.0,0.20782181]
[1732961418941,0.00080091,96855.0,96854.0,0.10457381]
[1732961425092,0.10404791,96855.0,96854.0,0.0017286]
[1732961425310,0.17934791,96855.0,96854.0,0.0017286]
[1732961425952,0.00080091,96855.0,96854.0,0.0017286]
[1732961428617,0.00080091,96855.0,96854.0,0.1049766]
[1732961428840,0.00080091,96855.0,96854.0,0.25804915]
[1732961429058,0.00080091,96855.0,96854.0,0.50752181]
[1732961429666,0.00083282,96866.0,96855.0,0.023]
[1732961429887,0.00083282,96866.0,96865.0,0.151936]
[1732961430149,0.00083282,96866.0,96865.0,0.25478121]
[1732961431216,0.00089256,96866.0,96865.0,0.25978121]
[1732961431471,0.00089256,96866.0,96865.0,0.33978121]
[1732961432563,0.00089256,96866.0,96865.0,0.33478121]
[1732961438139,0.00089256,96866.0,96865.0,0.48478121]
[1732961440875,0.00089256,96866.0,96865.0,0.50778121]
[1732961445980,0.00089256,96866.0,96865.0,0.51778121]
[1732961446208,0.00089256,96866.0,96865.0,1.01989164]
[1732961446428,0.00089256,96866.0,96865.0,0.51778121]
[1732961447018,0.00089256,96866.0,96865.0,1.01989164]
[1732961447371,0.00089256,96866.0,96865.0,0.51778121]
[1732961448206,0.00089256,96866.0,96865.0,0.52478121]
[1732961448870,0.00089256,96866.0,96865.0,0.52878121]
[1732961455691,5.98e-06,96866.0,96865.0,0.52878121]
[1732961458324,5.98e-06,96866.0,96865.0,0.52778121]
[1732961458557,5.98e-06,96866.0,96865.0,0.52178121]
[1732961459009,5.98e-06,96866.0,96865.0,0.51778121]
[1732961459011,5.98e-06,96866.0,96865.0,0.52378121]
[1732961459251,5.98e-06,96866.0,96865.0,0.51978121]
[1732961459478,5.98e-06,96866.0,96865.0,0.52478121]
[1732961459700,5.98e-06,96866.0,96865.0,0.52278121]
[1732961460889,0.0008642,96881.0,96880.0,0.27622]
[1732961461128,0.00146156,96881.0,96880.0,0.37906521]
[1732961461821,0.00146156,96881.0,96880.0,0.35606521]
[1732961467383,0.00146156,96881.0,96880.0,0.36726288]
[1732961471272,0.00146156,96881.0,96880.0,0.39026288]
[1732961491428,0.00146156,96881.0,96880.0,0.89237331]
[1732961495274,0.00146156,96881.0,96880.0,0.39026288]
[1732961507207,0.00146156,96881.0,96880.0,0.24026288]
[1732961516031,0.00146156,96881.0,96880.0,0.24439388]
[1732961521131,0.0010642,96889.0,96888.0,0.103211]
[1732961521387,0.0010642,96889.0,96888.0,0.20605621]
[1732961521644,0.00113199,96889.0,96888.0,0.20605621]
[1732961540349,0.0781,96899.0,96888.0,0.20605621]
[1732961540350,0.05734216,96899.0,96898.0,0.103201]
[1732961541503,0.05734216,96899.0,96898.0,0.106201]
[1732961541927,0.05734216,96899.0,96898.0,0.111201]
[1732961542397,0.0017284,96903.0,96898.0,0.008]
[1732961542602,0.0017284,96903.0,96899.0,0.103199]
[1732961542854,0.0017284,96903.0,96900.0,0.103198]
[1732961543288,0.0017284,96903.0,96898.0,0.008]
[1732961543501,0.0017284,96903.0,96899.0,0.103199]
[1732961544367,0.0017284,96903.0,96899.0,0.3096]
[1732961544597,0.0017284,96903.0,96901.0,0.103197]
[1732961545032,0.0017284,96903.0,96902.0,0.103197]
[1732961545246,0.0017284,96903.0,96902.0,0.20604221]
[1732961546414,0.0017284,96903.0,96902.0,0.20904221]
[1732961547054,0.0017284,96903.0,96902.0,0.21104221]
[1732961551407,0.1049234,96903.0,96902.0,0.10784521]
[1732961551619,0.0017284,96903.0,96902.0,0.10784521]
[1732961551839,0.1049234,96903.0,96902.0,0.005]
[1732961552054,0.20367088,96903.0,96902.0,0.005]
[1732961553637,0.20367088,96903.0,96902.0,0.003]
[1732961554069,0.20367088,96903.0,96889.0,0.00565267]
[1732961554070,0.206396,96901.0,96889.0,0.00565267]
[1732961554294,0.0836284,96903.0,96890.0,0.10284521]
[1732961554523,0.103203,96896.0,96890.0,0.20605321]
[1732961554747,0.206403,96898.0,96890.0,0.20605321]
[1732961554976,0.103204,96896.0,96890.0,0.20605421]
[1732961555202,0.103205,96894.0,96890.0,0.10284521]
[1732961555412,0.206404,96897.0,96890.0,0.10284521]
[1732961555635,0.103206,96894.0,96890.0,0.10284521]
[1732961555873,0.103206,96893.0,96890.0,0.10284521]
[1732961556101,0.01684748,96902.0,96890.0,0.10284521]
[1732961556365,0.103206,96894.0,96890.0,0.10284521]
[1732961556580,0.103205,96894.0,96890.0,0.10284521]
[1732961556797,0.103202,96897.0,96890.0,0.10284521]
[1732961557014,0.103206,96894.0,96890.0,0.10484521]
[1732961557234,0.206402,96898.0,96890.0,0.10484521]
[1732961557460,0.206404,96897.0,96890.0,0.10484521]
[1732961557694,0.103208,96891.0,96890.0,0.10584521]
[1732961557922,0.103208,96891.0,96890.0,0.10284521]
[1732961558145,0.103208,96891.0,96890.0,0.10584521]
[1732961558394,0.103208,96891.0,96890.0,0.10670921]
[1732961559058,0.103208,96891.0,96890.0,0.10370921]
[1732961559300,0.103208,96891.0,96890.0,0.003864]
[1732961559519,0.27949185,96891.0,96890.0,0.003864]
[1732961559998,0.27949185,96891.0,96890.0,0.005864]
[1732961560495,0.27949185,96891.0,96890.0,0.003864]
[1732961560709,0.27949185,96891.0,96890.0,0.000864]
[1732961560926,0.27949185,96891.0,96890.0,0.002864]
[1732961561164,0.27949185,96891.0,96890.0,0.000864]
[1732961562347,0.28092927,96891.0,96890.0,0.000864]
[1732961563237,0.25539788,96891.0,96890.0,0.000864]
[1732961565289,0.28092927,96891.0,96890.0,0.000864]
[1732961573170,0.29092927,96891.0,96890.0,0.000864]
[1732961573411,0.39377448,96891.0,96890.0,0.000864]
[1732961579634,0.4099296,96891.0,96890.0,0.000864]
[1732961580803,0.5599296,96891.0,96890.0,0.000864]
[1732961588543,0.59208743,96891.0,96890.0,0.000864]
[1732961588778,0.5599296,96891.0,96890.0,0.000864]
[1732961589260,0.59208743,96891.0,96890.0,0.000864]
[1732961589504,0.5599296,96891.0,96890.0,0.000864]
[1732961589755,0.5920938,96891.0,96890.0,0.000864]
[1732961589998,0.5599296,96891.0,96890.0,0.000864]
[1732961590465,0.59209376,96891.0,96890.0,0.000864]
[1732961591900,0.60209376,96891.0,96890.0,0.000864]
[1732961603051,0.15152728,96891.0,96890.0,0.000864]
[1732961603267,0.15152728,96891.0,96890.0,0.047864]
[1732961603490,0.103208,96891.0,96890.0,0.129864]
[1732961612238,0.103208,96891.0,96890.0,0.047864]
[1732961612444,0.10348099,96891.0,96890.0,0.047864]
[1732961612737,0.1289152,96891.0,96890.0,0.000864]
[1732961624401,0.1289152,96891.0,96890.0,0.0007963]
[1732961629180,0.23176041,96891.0,96890.0,0.0007963]
[1732961629436,0.3863918,96891.0,96890.0,0.0007963]
[1732961629677,0.418604,96891.0,96890.0,0.0007963]
[1732961631296,0.423604,96891.0,96890.0,0.0017963]
[1732961631790,0.39807261,96891.0,96890.0,0.0007963]
[1732961632018,0.40307261,96891.0,96890.0,0.0017963]
[1732961632279,0.40707261,96891.0,96890.0,0.0017963]
[1732961632726,0.40307261,96891.0,96890.0,0.0017963]
[1732961633202,0.40807261,96891.0,96890.0,0.0017963]
[1732961636257,0.433604,96891.0,96890.0,0.0017963]
[1732961638989,0.433604,96891.0,96881.0,0.0008642]
[1732961638990,0.103218,96882.0,96881.0,0.0008642]
[1732961639445,0.12894154,96882.0,96881.0,0.0008642]
[1732961640338,0.13194154,96882.0,96881.0,0.0008642]
[1732961641248,0.13694154,96882.0,96881.0,0.0008642]
[1732961643280,0.16830025,96882.0,96881.0,0.0008642]
[1732961651250,0.16830025,96882.0,96881.0,0.0787642]
[1732961651251,0.14791152,96882.0,96881.0,0.0787642]
[1732961651460,0.111218,96882.0,96881.0,0.0787642]
[1732961655609,0.111218,96882.0,96881.0,0.0008642]
[1732961659353,0.13727005,96882.0,96881.0,0.0008642]
[1732961663501,0.111218,96882.0,96881.0,0.0008642]
[1732961666124,0.111218,96882.0,96881.0,0.0507642]
[1732961672435,0.111218,96882.0,96881.0,0.1333642]
[1732961679268,0.111218,96882.0,96881.0,0.0507642]
[1732961680179,0.008,96882.0,96881.0,0.0507642]
[1732961680389,0.008,96882.0,96881.0,0.1275642]
[1732961682120,0.111218,96882.0,96881.0,0.1275642]
[1732961682332,0.008,96882.0,96881.0,0.1275642]
[1732961682960,0.111218,96882.0,96881.0,0.1275642]
[1732961683174,0.111218,96882.0,96881.0,0.0507642]
[1732961688157,0.111218,96882.0,96881.0,0.0008642]
[1732961695550,0.11267607,96882.0,96881.0,0.0008642]
[1732961695757,0.13728318,96882.0,96881.0,0.0008642]
[1732961696839,0.16953151,96882.0,96881.0,0.0008642]
[1732961697452,0.13728318,96882.0,96881.0,0.0008642]
[1732961698926,0.03406518,96882.0,96870.0,0.0187642]
[1732961699152,0.10323,96871.0,96870.0,0.0187642]
[1732961701096,0.10323,96871.0,96870.0,0.0196285]
[1732961703133,0.10423,96871.0,96870.0,0.0196285]
[1732961703591,0.10423,96871.0,96870.0,0.0008643]
[1732961704688,0.10436456,96871.0,96870.0,0.0008643]
[1732961704933,0.25659595,96871.0,96870.0,0.0008643]
[1732961705133,0.37048882,96871.0,96870.0,0.0008643]
[1732961705348,0.40272351,96871.0,96870.0,0.0008643]
[1732961706019,0.40172351,96871.0,96870.0,0.0008643]
[1732961706240,0.40772351,96871.0,96870.0,0.0018643]
[1732961706445,0.40172351,96871.0,96870.0,0.0008643]
[1732961706889,0.40772351,96871.0,96870.0,0.0018643]
[1732961707102,0.43903383,96871.0,96870.0,0.0018643]
[1732961707320,0.40679914,96871.0,96870.0,0.0018643]
[1732961707960,0.4389984,96871.0,96870.0,0.0018643]
[1732961708403,0.40679914,96871.0,96870.0,0.0018643]
[1732961708619,0.40479914,96871.0,96870.0,0.0018643]
[1732961709068,0.40779914,96871.0,96870.0,0.0018643]
[1732961713070,0.40952814,96871.0,96870.0,0.0018643]
[1732961715499,0.38399675,96871.0,96870.0,0.0018643]
[1732961720158,0.30349675,96871.0,96870.0,0.0018643]
[1732961720640,0.15445154,96871.0,96870.0,0.0018643]
[1732961721967,0.010729,96871.0,96870.0,0.1240643]
[1732961722436,0.113959,96871.0,96870.0,0.1240643]
[1732961722863,0.110959,96871.0,96870.0,0.1240643]
[1732961723101,0.110959,96871.0,96870.0,0.1250643]
[1732961723309,0.110959,96871.0,96870.0,0.1240643]
[1732961723310,0.104959,96871.0,96870.0,0.1240643]
[1732961723736,0.104959,96871.0,96870.0,0.1250643]
[1732961725926,0.001729,96871.0,96870.0,0.1250643]
[1732961726204,0.104959,96871.0,96870.0,0.1250643]
[1732961728185,0.104959,96871.0,96866.0,0.00027545]
[1732961728396,0.102459,96871.0,96866.0,0.103235]
[1732961728631,0.10323,96871.0,96865.0,0.0008643]
[1732961729302,0.103231,96870.0,96865.0,0.0008643]
[1732961729523,0.206455,96873.0,96865.0,0.0008643]
[1732961729738,0.103229,96872.0,96865.0,0.1040993]
[1732961729965,0.103229,96872.0,96866.0,0.103234]
[1732961730192,0.206455,96873.0,96865.0,0.1051003]
[1732961730417,0.10323,96871.0,96866.0,0.103235]
[1732961730630,0.10323,96871.0,96866.0,0.104235]
[1732961731067,0.10323,96871.0,96866.0,0.103235]
[1732961731329,0.103229,96872.0,96867.0,0.103233]
[1732961731542,0.103229,96872.0,96866.0,0.1304]
[1732961732182,0.103229,96872.0,96867.0,0.103233]
[1732961733290,0.206447,96877.0,96866.0,0.1314]
[1732961733521,0.103228,96873.0,96866.0,0.1314]
[1732961733801,0.103228,96873.0,96867.0,0.103233]
[1732961734026,0.103229,96872.0,96867.0,0.103233]
[1732961734289,0.10323,96871.0,96866.0,0.1304]
[1732961734763,0.103227,96873.0,96866.0,0.1304]
[1732961735450,0.103227,96873.0,96867.0,0.103233]
[1732961735909,0.10323,96871.0,96866.0,0.1304]
[1732961736141,0.103229,96872.0,96866.0,0.233634]
[1732961736816,0.103229,96872.0,96866.0,0.1314]
[1732961737042,0.10323,96871.0,96866.0,0.1314]
[1732961737255,0.10323,96871.0,96866.0,0.1304]
[1732961737490,0.206453,96874.0,96866.0,0.1312645]
[1732961737720,0.103229,96872.0,96866.0,0.1312645]
[1732961737937,0.206453,96874.0,96866.0,0.1312645]
[1732961738397,0.103231,96870.0,96866.0,0.1312645]
[1732961739288,0.206455,96873.0,96866.0,0.1312645]
[1732961739289,0.10323,96871.0,96866.0,0.1312645]
[1732961739530,0.103232,96870.0,96866.0,0.1322645]
[1732961739746,0.206458,96872.0,96866.0,0.1332645]
[1732961739960,0.103232,96869.0,96866.0,0.1322645]
[1732961740181,0.103232,96869.0,96866.0,0.1332645]
[1732961740420,0.206458,96872.0,96866.0,0.1332645]
[1732961740638,0.103232,96869.0,96866.0,0.1332645]
[1732961740876,0.103233,96868.0,96866.0,0.0516645]
[1732961741105,0.001,96874.0,96866.0,0.0516645]
[1732961741634,0.103233,96868.0,96866.0,0.0516645]
[1732961741859,0.001729,96877.0,96866.0,0.0506645]
[1732961742086,0.001729,96877.0,96866.0,0.0516645]
[1732961742300,0.103234,96868.0,96866.0,0.0506645]
[1732961742523,0.206462,96870.0,96866.0,0.0008645]
[1732961742741,0.12388466,96867.0,96866.0,0.0018645]
[1732961743181,0.12388466,96867.0,96866.0,0.0008645]
[1732961743669,0.17268466,96867.0,96866.0,0.0018645]
[1732961743874,0.20253171,96867.0,96866.0,0.0018645]
[1732961744096,0.20253171,96867.0,96866.0,0.0008645]
[1732961744320,0.20253171,96867.0,96866.0,0.0028645]
[1732961744784,0.20253171,96867.0,96866.0,0.0038645]
[1732961745467,0.20253171,96867.0,96866.0,0.0058645]
[1732961745695,0.20253171,96867.0,96866.0,0.0008645]
[1732961746129,0.20353171,96867.0,96866.0,0.0008645]
[1732961746372,0.20253171,96867.0,96866.0,0.0008645]
[1732961746828,0.20353171,96867.0,96866.0,0.0008645]
[1732961747980,0.103234,96867.0,96866.0,0.0008645]
[1732961748226,0.104234,96867.0,96866.0,0.0008645]
[1732961748465,0.103234,96867.0,96866.0,0.0008645]
[1732961748929,0.104234,96867.0,96866.0,0.0008645]
[1732961749207,0.103234,96867.0,96866.0,0.0008645]
[1732961751362,0.103234,96867.0,96866.0,0.0018645]
[1732961751588,0.103234,96867.0,96866.0,0.0008645]
[1732961752046,0.103234,96867.0,96866.0,0.0018645]
[1732961752287,0.0017286,96871.0,96866.0,0.0018645]
[1732961752523,0.103234,96867.0,96866.0,0.0018645]
[1732961753241,0.0017286,96871.0,96866.0,0.0028645]
[1732961753466,0.103232,96869.0,96867.0,0.0454]
[1732961753938,0.0017286,96871.0,96867.0,0.0454]
[1732961754162,0.103233,96868.0,96867.0,0.0454]
[1732961755113,0.103232,96869.0,96867.0,0.0464]
[1732961755359,0.0017286,96871.0,96867.0,0.0464]
[1732961755592,0.0017286,96871.0,96867.0,0.001]
[1732961755593,0.103233,96868.0,96867.0,0.001]
[1732961756049,0.103233,96868.0,96867.0,0.002]
[1732961756492,0.103233,96868.0,96867.0,0.001]
[1732961756802,0.103233,96869.0,96867.0,0.001]
[1732961757432,0.103233,96868.0,96866.0,0.0008645]
[1732961758283,0.103233,96868.0,96867.0,0.001]
[1732961758718,0.0017286,96871.0,96866.0,0.0008645]
[1732961758925,0.0017286,96871.0,96866.0,0.0018645]
[1732961759133,0.103232,96869.0,96867.0,0.001]
[1732961759552,0.103233,96868.0,96867.0,0.001]
[1732961759756,0.103233,96868.0,96866.0,0.0008645]
[1732961759987,0.1049586,96871.0,96866.0,0.0008645]
[1732961760189,0.0017286,96871.0,96866.0,0.0008645]
[1732961760393,0.0017286,96871.0,96870.0,0.103231]
[1732961763842,0.0017286,96871.0,96870.0,0.104231]
[1732961764284,0.0017286,96871.0,96870.0,0.105231]
[1732961764537,0.0017286,96871.0,96870.0,0.104231]
[1732961765002,0.0017286,96871.0,96870.0,0.106231]
[1732961765466,0.0017286,96871.0,96870.0,0.108231]
[1732961768289,0.0017286,96871.0,96870.0,0.005]
[1732961768523,0.0017286,96871.0,96870.0,0.108231]
[1732961768769,0.1049586,96871.0,96870.0,0.005]
[1732961770210,0.12563873,96871.0,96870.0,0.005]
[1732961770463,0.1049586,96871.0,96870.0,0.005]
[1732961773204,0.10473744,96871.0,96870.0,0.005]
[1732961773723,0.10473744,96871.0,96870.0,0.0058643]
[1732961780864,0.00150744,96871.0,96870.0,0.0058643]
[1732961781092,0.10473744,96871.0,96870.0,0.0058643]
[1732961783132,0.00150744,96871.0,96870.0,0.0058643]
[1732961783804,0.10473744,96871.0,96870.0,0.0058643]
[1732961794399,0.19982253,96871.0,96870.0,0.0058643]
[1732961794648,0.25294258,96871.0,96870.0,0.0058643]
[1732961795090,0.25294258,96871.0,96870.0,0.0038643]
[1732961796700,0.25394258,96871.0,96870.0,0.0038643]
[1732961796918,0.25394258,96871.0,96870.0,0.0008643]
[1732961797843,0.25694258,96871.0,96870.0,0.0008643]
[1732961798058,0.25594258,96871.0,96870.0,0.0008643]
[1732961798527,0.25894258,96871.0,96870.0,0.0008643]
[1732961798768,0.27808918,96871.0,96854.0,0.0017286]
[1732961799009,0.103246,96856.0,96854.0,0.0017286]
[1732961799250,0.230446,96856.0,96854.0,0.0017286]
[1732961800215,0.230446,96856.0,96855.0,0.00232616]
[1732961800702,0.33329121,96856.0,96855.0,0.00232616]
[1732961800941,0.42414716,96856.0,96855.0,0.00232616]
[1732961801161,0.57414716,96856.0,96855.0,0.00232616]
[1732961801388,0.60107438,96856.0,96855.0,0.00232616]
[1732961801613,0.61501304,96856.0,96855.0,0.00232616]
[1732961801841,0.390447,96855.0,96854.0,7.6e-07]
[1732961802069,0.52552428,96855.0,96854.0,6.05e-05]
[1732961802307,0.57498289,96855.0,96854.0,6.05e-05]
[1732961803041,0.57498289,96855.0,96854.0,5e-07]
[1732961803255,0.67781435,96855.0,96854.0,5e-07]
[1732961803482,0.68281435,96855.0,96854.0,5e-07]
[1732961804138,0.390453,96849.0,96848.0,0.0016884]
[1732961804361,0.52553028,96849.0,96848.0,0.0016884]
[1732961804585,0.56106167,96849.0,96848.0,0.0016884]
[1732961805023,0.65142743,96849.0,96848.0,0.0016884]
[1732961805725,0.01,96841.0,96800.0,0.0366022]
[1732961805938,0.37379644,96840.0,96800.0,0.06442523]
[1732961806160,0.1033,96805.0,96800.0,0.06442523]
[1732961806371,0.206595,96808.0,96800.0,0.103304]
[1732961806620,0.23241543,96808.0,96800.0,0.103304]
[1732961806870,0.1033,96805.0,96800.0,0.103304]
[1732961807308,0.02553139,96804.0,96800.0,0.103304]
[1732961807537,0.02553139,96804.0,96798.0,0.0773]
[1732961807758,0.02553139,96804.0,96800.0,0.103305]
[1732961808004,0.00105962,96805.0,96800.0,0.005]
[1732961808206,0.02553139,96804.0,96800.0,0.103305]
[1732961808702,0.02553139,96804.0,96801.0,0.103304]
[1732961808892,0.02553139,96804.0,96802.0,0.103303]
[1732961809119,0.00305962,96805.0,96802.0,0.103303]
[1732961809353,0.00205962,96805.0,96802.0,0.103303]
[1732961809582,0.00205962,96805.0,96800.0,0.0008643]
[1732961809807,0.001,96804.0,96802.0,0.103303]
[1732961810039,0.02682043,96804.0,96802.0,0.103303]
[1732961810269,0.02582043,96804.0,96802.0,0.103303]
[1732961810510,0.02582043,96804.0,96803.0,0.103302]
[1732961810761,0.02882043,96804.0,96803.0,0.103302]
[1732961810983,0.02582043,96804.0,96803.0,0.103302]
[1732961811216,5.962e-05,96805.0,96804.0,0.103301]
[1732961811443,5.962e-05,96805.0,96801.0,0.206609]
[1732961811914,0.004,96804.0,96800.0,0.0008643]
[1732961812371,0.004,96804.0,96801.0,0.103304]
[1732961812594,0.00073618,96803.0,96801.0,0.103304]
[1732961812818,0.00073618,96803.0,96800.0,0.0008643]
[1732961813496,0.00073618,96803.0,96800.0,0.1041683]
[1732961813937,0.00073618,96803.0,96800.0,0.0008643]
[1732961814377,0.00073618,96803.0,96801.0,0.103304]
[1732961814616,0.00373618,96803.0,96800.0,0.0008643]
[1732961814824,0.00373618,96803.0,96802.0,0.103303]
[1732961815040,0.00473618,96803.0,96800.0,0.0008643]
[1732961815470,0.20834218,96803.0,96800.0,0.0008643]
[1732961815719,0.00173618,96803.0,96800.0,0.0008643]
[1732961816170,0.00373618,96803.0,96800.0,0.0008643]
[1732961816423,0.00473618,96803.0,96800.0,0.0008643]
[1732961816652,0.103304,96801.0,96800.0,0.0008643]
[1732961817148,0.10404018,96801.0,96800.0,0.0008643]
[1732961817582,0.10454485,96801.0,96800.0,0.0008643]
[1732961818388,0.10554485,96801.0,96800.0,0.0008643]
[1732961818889,0.10854485,96801.0,96800.0,0.0008643]
[1732961819102,0.10554485,96801.0,96800.0,0.0008643]
[1732961819545,0.10554485,96801.0,96800.0,0.0078643]
[1732961819986,0.10554485,96801.0,96800.0,0.0118643]
[1732961823319,0.15204485,96801.0,96800.0,0.0118643]
[1732961827952,0.25489006,96801.0,96800.0,0.0118643]
[1732961828168,0.33079006,96801.0,96800.0,0.0118643]
[1732961828379,0.35632145,96801.0,96800.0,0.0118643]
[1732961828829,0.103312,96794.0,96793.0,0.0008643]
[1732961829051,0.103332,96775.0,96773.0,0.0008643]
[1732961829289,0.03232224,96793.0,96773.0,0.0008643]
[1732961829507,0.13516745,96793.0,96773.0,0.0008643]
[1732961829724,0.103333,96774.0,96773.0,0.0008643]
[1732961829948,0.103331,96776.0,96773.0,0.0008643]